bitfinex/quotes_ETHUSD_20250706
["timestamp","ask_amount","ask_price","bid_price","bid_amount"]
[1751809805507,0.002,2548.3,2548.2,15.58789945]
[1751809806613,0.002,2548.3,2548.2,5.58789945]
[1751809807436,0.552,2548.3,2547.9,3.92476318]
[1751809807646,0.452,2548.3,2547.8,4.68725054]
[1751809807794,0.452,2548.3,2547.9,3.92469888]
[1751809807989,4.37618553,2548.3,2547.8,0.7623]
[1751809808190,1.77395855,2548.3,2547.6,0.7623]
[1751809808413,3.92442114,2548.2,2547.7,3.92506188]
[1751809808923,3.92442114,2548.2,2547.6,4.68748223]
[1751809809131,3.92471684,2548.0,2547.6,0.7623]
[1751809809293,8.143,2547.9,2547.6,0.7623]
[1751809809729,0.55,2547.8,2547.6,0.7623]
[1751809809888,0.55,2547.8,2547.6,0.9583]
[1751809810336,0.55,2547.8,2547.6,0.196]
[1751809811109,4.47496888,2547.8,2547.6,0.196]
[1751809811354,4.47506177,2547.8,2547.6,0.196]
[1751809811531,0.55,2547.8,2547.6,0.196]
[1751809811705,0.55,2547.8,2547.5,1e-08]
[1751809811895,0.746,2547.8,2547.5,3.92533845]
[1751809812100,0.55,2547.6,2547.5,3.92533845]
[1751809812794,0.55,2547.6,2547.5,1e-08]
[1751809814335,0.196,2547.8,2547.6,4.68546299]
[1751809814640,0.002,2548.3,2547.8,3.9248781]
[1751809814641,0.198,2548.3,2547.8,3.9248781]
[1751809814935,8.693,2548.2,2547.9,3.92469093]
[1751809815143,8.693,2548.2,2547.8,3.92491632]
[1751809815330,8.693,2548.2,2547.9,3.92477537]
[1751809815506,8.693,2548.2,2547.8,3.92487745]
[1751809815705,12.61739051,2548.2,2547.7,4.12103586]
[1751809815907,12.81339051,2548.2,2547.7,4.12103586]
[1751809816341,12.81339051,2548.2,2547.7,0.196]
[1751809816636,12.81339051,2548.2,2547.7,4.12107813]
[1751809816840,8.889,2548.2,2547.8,3.92494762]
[1751809817005,8.889,2548.2,2547.9,3.92478748]
[1751809817209,0.55,2548.0,2547.9,3.92478748]
[1751809817446,0.55,2548.2,2547.7,0.196]
[1751809817739,2.028,2548.3,2547.9,3.92475851]
[1751809817740,8.692,2548.1,2547.9,3.92475851]
[1751809817908,8.692,2548.1,2548.0,3.92464678]
[1751809818311,0.002,2548.3,2548.2,3.92433874]
[1751809818728,8.144,2548.3,2548.2,4.15958212]
[1751809818922,0.002,2548.3,2548.2,4.12033874]
[1751809819124,0.002,2548.3,2548.2,5.04640524]
[1751809819326,8.144,2548.3,2548.2,5.04640524]
[1751809819656,8.144,2548.3,2548.2,5.00716186]
[1751809820333,8.144,2548.3,2548.2,4.12033874]
[1751809822852,8.144,2548.3,2548.2,0.196]
[1751809823156,0.552,2548.3,2547.8,0.7977]
[1751809823320,0.002,2548.3,2548.2,4.91803874]
[1751809823519,0.002,2548.7,2548.6,3.92372282]
[1751809823751,0.002,2548.7,2548.6,5.1137951]
[1751809823919,8.143,2548.7,2548.6,5.34903232]
[1751809824120,8.143,2548.7,2548.6,5.3097951]
[1751809824444,0.002,2548.7,2548.6,5.3097951]
[1751809824640,8.143,2548.7,2548.6,5.3097951]
[1751809824842,0.002,2548.7,2548.6,5.3097951]
[1751809825059,0.002,2548.7,2548.6,5.34903232]
[1751809825358,1e-08,2549.1,2549.0,3.9231071]
[1751809825532,1e-08,2549.1,2549.0,5.74067332]
[1751809825740,1e-08,2549.1,2549.0,5.70144225]
[1751809826422,1e-08,2549.1,2549.0,5.74067332]
[1751809826656,1e-08,2549.1,2549.0,5.70144225]
[1751809827419,1e-08,2549.1,2549.0,5.74067332]
[1751809828155,1e-08,2549.1,2549.0,5.70144225]
[1751809828725,1e-08,2549.1,2549.0,15.74067332]
[1751809828955,8.138,2549.8,2549.5,4.67293771]
[1751809829165,8.138,2549.8,2549.5,5.76770234]
[1751809829459,0.0442317,2550.1,2550.0,4.67216862]
[1751809829831,0.0442317,2550.1,2550.0,4.7113843]
[1751809830029,0.0442317,2550.1,2550.0,4.67216862]
[1751809832558,0.0442317,2550.1,2549.7,0.7876]
[1751809832759,0.55,2550.0,2549.2,3.9227993]
[1751809832974,4.62004279,2550.0,2549.1,0.7876]
[1751809833272,0.55,2549.7,2549.3,3.92256079]
[1751809833426,0.55,2549.5,2549.3,3.92256079]
[1751809833629,0.55,2549.5,2549.1,5.2600432]
[1751809833938,0.55,2549.5,2549.2,3.9227993]
[1751809834262,0.55,2549.5,2549.3,3.92252197]
[1751809834466,0.55,2549.5,2549.3,3.92256951]
[1751809834962,0.55,2549.5,2549.4,3.92249156]
[1751809835664,0.55,2549.5,2549.3,3.92258019]
[1751809835870,0.6984,2549.4,2548.8,0.7876]
[1751809836026,0.6984,2549.4,2548.6,0.39237228]
[1751809836027,0.55,2549.3,2548.6,0.39237228]
[1751809836230,0.55,2549.3,2548.5,0.7876]
[1751809836463,1.2484,2548.8,2548.3,3.92407235]
[1751809836682,0.55,2548.6,2548.3,3.92406643]
[1751809836830,0.55,2548.6,2548.4,0.39240664]
[1751809837032,4.47374745,2548.6,2548.0,0.0442317]
[1751809837248,0.55,2548.6,2548.2,3.92420238]
[1751809837455,4.62094382,2549.4,2548.4,4.71159656]
[1751809837660,10.0,2549.2,2548.4,0.7876]
[1751809837874,0.55,2549.0,2548.9,3.92326101]
[1751809838175,0.55,2549.0,2548.5,0.03923876]
[1751809838477,0.55,2549.0,2548.5,3.92385601]
[1751809838670,0.55,2549.0,2548.8,3.9234083]
[1751809838888,0.55,2549.0,2548.7,3.92354274]
[1751809839088,0.0462317,2550.1,2549.0,3.9231071]
[1751809839375,0.23908639,2550.5,2550.4,4.70855357]
[1751809839376,1e-08,2550.5,2550.4,4.70855357]
[1751809839873,1e-08,2550.5,2550.4,4.7477631]
[1751809840069,1e-08,2550.5,2550.4,5.81684965]
[1751809840239,1e-08,2550.5,2550.4,15.81684965]
[1751809840435,1e-08,2550.5,2550.4,15.77764012]
[1751809841460,1e-08,2550.6,2550.5,3.92079984]
[1751809842376,1e-08,2550.6,2550.5,13.96000783]
[1751809842541,8.24823901,2551.8,2551.3,0.813]
[1751809842736,8.24823901,2551.8,2551.5,3.91925293]
[1751809842940,0.03723901,2551.8,2551.6,3.91908342]
[1751809843138,0.03723901,2551.8,2551.5,3.91919]
[1751809843339,0.03723901,2551.8,2551.6,3.91907527]
[1751809843573,0.03723901,2551.8,2551.4,3.91941439]
[1751809844069,0.03723901,2551.8,2551.6,3.91910568]
[1751809844953,0.03723901,2551.8,2551.7,3.91895599]
[1751809845975,0.03723901,2551.8,2551.7,3.95814554]
[1751809846395,0.03723901,2551.8,2551.7,3.91895599]
[1751809847674,0.03723901,2551.8,2551.3,0.813]
[1751809847878,0.03723901,2551.8,2551.6,3.91900395]
[1751809848181,0.55,2551.7,2551.3,4.73256991]
[1751809848380,0.55,2551.7,2551.4,3.91933182]
[1751809848911,0.55,2551.7,2551.5,3.91921426]
[1751809849396,0.03723901,2551.8,2551.7,3.91895599]
[1751809849599,8.23423901,2551.8,2551.7,4.11415599]
[1751809849789,8.23423901,2551.8,2551.7,0.1952]
[1751809849992,8.78423901,2551.8,2551.7,0.1952]
[1751809850214,0.55,2551.7,2551.6,4.11422373]
[1751809850574,8.23423901,2551.8,2551.7,3.91895599]
[1751809850898,0.58723901,2551.8,2551.7,3.91895599]
[1751809851206,8.23023901,2551.8,2551.7,4.91747396]
[1751809851433,8.23023901,2551.8,2551.7,0.1952]
[1751809851580,8.78023901,2551.8,2551.7,0.1952]
[1751809852114,6.00427934,2552.5,2551.7,0.1952]
[1751809852115,3.91572719,2553.9,2551.9,0.7633]
[1751809852274,0.6984,2554.0,2552.1,10.7633]
[1751809852597,0.015517,2553.3,2553.2,3.91665361]
[1751809852809,0.015517,2553.3,2553.1,4.68009428]
[1751809852810,0.015517,2553.3,2553.1,4.68002593]
[1751809853010,0.015517,2553.3,2553.2,3.91665361]
[1751809853813,8.288517,2553.3,2553.2,3.91665361]
[1751809854019,0.065517,2554.1,2554.0,4.67872678]
[1751809854337,0.4995,2555.0,2554.3,3.9148905]
[1751809854478,0.4995,2555.0,2554.1,10.7633]
[1751809854680,0.4995,2555.0,2554.6,3.91438504]
[1751809854879,0.4995,2555.0,2554.2,10.0]
[1751809855201,0.4995,2555.0,2554.4,0.7633]
[1751809855404,0.4995,2555.0,2554.7,3.91425784]
[1751809855610,0.4995,2555.0,2554.4,0.7633]
[1751809855814,8.376,2554.9,2554.4,0.7633]
[1751809856109,0.55,2554.9,2554.4,4.67796232]
[1751809856455,0.4995,2555.0,2554.4,4.67796232]
[1751809856456,0.4995,2555.0,2554.5,0.0391466]
[1751809856608,8.386,2554.8,2554.6,3.91447925]
[1751809856814,8.386,2554.8,2554.5,0.0391466]
[1751809856997,8.386,2554.9,2554.5,0.0391466]
[1751809857197,9.27455,2554.9,2554.1,10.0]
[1751809857403,9.27455,2554.9,2554.0,2.095]
[1751809857404,0.55,2554.8,2554.2,3.91510652]
[1751809857598,0.55,2554.8,2554.0,0.7633]
[1751809857900,12.30044843,2554.7,2554.0,4.67863401]
[1751809858101,4.46450716,2554.6,2554.0,0.7633]
[1751809858279,0.55,2554.4,2553.5,0.7633]
[1751809858481,1.28505072,2554.5,2554.0,3.91527689]
[1751809858799,1.28505072,2554.5,2554.1,0.03915273]
[1751809859184,10.55,2554.9,2554.3,3.9149628]
[1751809859495,8.383,2554.8,2554.4,0.03914813]
[1751809859690,3.91430274,2554.8,2554.1,3.91517341]
[1751809859916,8.384,2554.7,2554.1,3.91517341]
[1751809860210,8.384,2554.7,2553.7,3.91588675]
[1751809860411,8.384,2554.7,2553.8,0.39158868]
[1751809860612,0.55,2554.9,2553.8,0.39158868]
[1751809860613,0.55,2554.9,2554.2,3.91512019]
[1751809860911,0.4995,2555.0,2554.3,0.03914966]
[1751809861210,0.4995,2555.0,2554.3,3.95407345]
[1751809861423,8.8795,2555.0,2554.4,3.91471047]
[1751809861716,1.38745,2555.0,2554.5,3.91459507]
[1751809861893,8.381,2554.9,2554.6,3.95364964]
[1751809862090,8.381,2554.9,2554.1,0.7633]
[1751809862296,12.29505826,2554.9,2554.8,0.1952]
[1751809862528,3.91443755,2554.7,2554.5,0.1952]
[1751809863115,8.381,2554.6,2554.5,0.1952]
[1751809863408,4.46423132,2554.8,2554.5,0.1952]
[1751809863616,8.378,2554.7,2554.5,0.1952]
[1751809863793,8.378,2554.7,2554.5,3.91465937]
[1751809864000,2.5925,2555.0,2554.5,3.91465937]
[1751809864001,0.4995,2555.0,2554.5,4.69762075]
[1751809864200,8.38,2554.9,2554.7,3.91426826]
[1751809864396,0.4995,2555.0,2554.9,0.1952]
[1751809864705,8.8785,2555.0,2554.9,0.1952]
[1751809864905,3.91427163,2554.8,2554.1,0.7633]
[1751809865082,5.63993822,2554.8,2554.7,0.1952]
[1751809865282,1.72566659,2554.8,2554.7,0.1952]
[1751809865500,0.4995,2555.0,2554.7,0.1952]
[1751809865705,0.4995,2555.0,2554.9,3.91404751]
[1751809865914,0.4995,2555.0,2554.9,0.9559]
[1751809866225,0.4995,2555.0,2554.9,4.86994751]
[1751809866383,0.4995,2555.0,2554.9,5.75227634]
[1751809866833,0.1012528,2555.6,2555.0,0.8329]
[1751809866982,0.1012528,2555.6,2555.5,4.10832854]
[1751809867293,0.1012528,2555.6,2555.5,0.1952]
[1751809867495,4.01422822,2555.6,2555.5,0.1952]
[1751809867750,1.73284734,2555.6,2555.5,0.1952]
[1751809868035,8.4942528,2555.6,2555.5,0.1952]
[1751809868224,8.4932528,2555.6,2555.5,0.1952]
[1751809868400,0.1012528,2555.6,2555.5,4.94122854]
[1751809868833,0.1037678,2556.8,2556.7,4.74419189]
[1751809869131,0.1037678,2558.0,2557.6,3.90988959]
[1751809869300,0.1037678,2558.0,2557.7,0.1952]
[1751809869732,0.7575,2558.7,2557.7,10.1952]
[1751809869957,6.09181221,2559.0,2558.9,3.90792918]
[1751809869958,0.00592202,2559.0,2558.9,3.90792918]
[1751809870233,0.503965,2558.7,2558.6,3.90838739]
[1751809870598,0.503965,2558.7,2557.9,10.0]
[1751809870599,0.503965,2558.7,2557.8,1.85242]
[1751809870802,8.578,2558.6,2557.9,0.03909456]
[1751809871024,2.178,2558.5,2557.8,0.8329]
[1751809871335,2.178,2558.5,2556.3,8.577]
[1751809871336,1.261465,2558.7,2556.9,0.8329]
[1751809871631,0.55,2558.2,2556.9,0.8329]
[1751809871832,10.0,2557.9,2557.0,3.910833]
[1751809871998,10.0,2557.9,2557.1,3.91055826]
[1751809871999,0.55,2557.7,2557.1,3.91055826]
[1751809872200,0.55,2557.7,2557.0,3.910833]
[1751809872201,0.55,2557.5,2557.0,3.910833]
[1751809872532,0.55,2557.5,2557.1,0.0391068]
[1751809872702,0.416602,2557.6,2557.1,0.0391068]
[1751809872899,8.724,2557.5,2557.1,3.9106147]
[1751809873147,8.724,2557.5,2556.9,4.74386381]
[1751809873434,8.727,2557.4,2556.9,0.8329]
[1751809873598,3.91063478,2557.2,2557.0,0.03910833]
[1751809873798,0.55,2557.3,2556.6,3.91144147]
[1751809874000,13.18756443,2557.2,2556.7,0.03911291]
[1751809874200,9.277,2557.2,2556.4,0.8329]
[1751809874398,0.416602,2557.6,2556.6,3.91132305]
[1751809874701,0.55,2557.4,2556.7,0.03911291]
[1751809874904,0.55,2557.3,2556.4,0.8279]
[1751809875103,3.91108384,2556.9,2556.4,0.8279]
[1751809875318,0.55,2557.4,2556.4,0.8279]
[1751809875520,0.55,2557.2,2556.5,3.91146493]
[1751809875721,0.55,2557.2,2556.4,4.7395213]
[1751809876069,0.55,2557.2,2556.6,3.91142867]
[1751809876220,10.97,2557.1,2556.6,3.91142867]
[1751809876419,0.55,2557.2,2556.6,3.91134633]
[1751809876660,0.8082994,2557.2,2556.7,0.39113463]
[1751809876967,12.62273485,2557.1,2555.7,12.252]
[1751809877171,0.2582994,2557.2,2556.8,3.91099903]
[1751809877335,0.2582994,2557.2,2556.6,3.9113093]
[1751809877336,0.2582994,2557.2,2556.5,0.8329]
[1751809877521,0.2582994,2557.2,2556.9,3.91098239]
[1751809877863,8.705,2557.1,2556.7,3.91122206]
[1751809878166,12.61572525,2557.1,2556.5,0.8329]
[1751809878464,1e-08,2557.2,2556.5,0.8329]
[1751809878647,2.357,2559.2,2556.8,0.8329]
[1751809878844,8.845,2558.9,2557.1,10.0]
[1751809879150,3.91373448,2559.0,2556.9,3.43929]
[1751809879151,0.00592202,2559.0,2558.4,3.9086478]
[1751809879358,8.847,2558.9,2558.5,0.0390854]
[1751809879557,8.847,2558.9,2558.3,3.90881272]
[1751809879858,0.00592202,2559.0,2558.1,3.90908975]
[1751809880070,11.198,2558.9,2558.5,3.90848095]
[1751809880368,11.198,2558.9,2558.8,0.1952]
[1751809880722,11.198,2558.9,2557.9,3.90945697]
[1751809880948,10.55,2558.6,2558.5,0.1952]
[1751809881250,10.55,2558.6,2558.1,3.90906386]
[1751809881251,11.743,2558.6,2558.1,3.90908947]
[1751809881433,11.633,2558.6,2558.1,3.90908947]
[1751809881748,0.44,2558.6,2557.3,10.0]
[1751809881937,10.0,2558.8,2558.3,3.90880091]
[1751809882139,8.833,2558.7,2558.2,3.90890865]
[1751809882327,8.833,2558.7,2557.9,3.90942085]
[1751809882328,13.90850729,2558.6,2557.9,3.90942085]
[1751809882530,0.7511,2558.4,2557.1,0.8195]
[1751809883060,3.90985654,2557.7,2556.7,0.8195]
[1751809883371,8.828,2557.6,2557.0,3.910792]
[1751809883545,0.55,2558.0,2557.5,3.90998272]
[1751809883858,1.37917494,2560.8,2557.8,3.90960982]
[1751809883859,8.827,2557.9,2557.8,3.90960982]
[1751809884028,0.55,2558.3,2557.6,0.03909915]
[1751809884229,8.776,2558.2,2558.1,3.90915132]
[1751809884426,11.751,2558.7,2558.1,3.90915132]
[1751809884626,9.395,2558.7,2558.2,3.90887859]
[1751809884948,8.826,2558.6,2557.7,0.8195]
[1751809885149,0.55,2558.5,2558.0,3.90919517]
[1751809885351,12.73449821,2558.6,2557.6,3.90988821]
[1751809885352,0.55,2558.3,2557.6,3.90988821]
[1751809885657,8.822,2558.2,2558.1,3.9090273]
[1751809885860,8.822,2558.2,2558.1,3.90900755]
[1751809886032,8.822,2558.2,2558.1,3.90915132]
[1751809886235,8.819,2558.2,2558.1,3.90915132]
[1751809886629,8.818,2558.2,2558.1,3.90915132]
[1751809886862,8.818,2558.2,2557.3,10.8195]
[1751809887069,9.395,2558.7,2557.7,0.03909762]
[1751809887264,2.356,2558.5,2557.5,3.9100383]
[1751809887467,2.356,2558.5,2558.1,3.90907153]
[1751809887762,14.45797556,2558.9,2557.4,1.47299585]
[1751809887763,0.9629026,2559.4,2557.4,1.47299585]
[1751809887962,10.55,2558.8,2558.4,3.90867026]
[1751809888165,10.55,2558.8,2558.2,3.90895188]
[1751809888166,10.55,2558.8,2558.5,3.90850692]
[1751809888371,0.55,2558.8,2558.5,3.9083951]
[1751809888668,8.812,2558.7,2558.3,3.9087361]
[1751809888869,8.812,2558.7,2558.5,3.90851123]
[1751809889197,10.31950419,2558.7,2558.4,3.90859656]
[1751809889373,10.31950419,2558.7,2558.3,3.90875131]
[1751809889543,8.803,2558.6,2558.3,3.90875131]
[1751809889738,0.55,2558.5,2557.5,3.90996254]
[1751809889938,0.55,2558.5,2557.7,3.90967218]
[1751809889939,5.99267231,2558.5,2557.7,3.90967218]
[1751809890144,4.45902859,2558.2,2557.5,3.90994955]
[1751809890368,0.55,2558.0,2557.3,0.8195]
[1751809890670,0.00592202,2559.0,2558.9,3.90792918]
[1751809890849,8.80392202,2559.0,2558.8,3.90800848]
[1751809891047,9.68431422,2559.0,2557.7,6.26469966]
[1751809891274,8.859,2558.9,2558.8,3.90808191]
[1751809891567,0.88631422,2559.0,2557.9,3.90941711]
[1751809891568,0.88631422,2559.0,2558.9,4.10312918]
[1751809891872,0.00592202,2559.0,2558.9,4.10312918]
[1751809892060,8.86892202,2559.0,2558.9,4.10312918]
[1751809892455,0.00592202,2559.0,2558.9,4.10312918]
[1751809892644,8.86892202,2559.0,2558.9,4.10312918]
[1751809893046,0.00592202,2559.0,2558.9,4.10312918]
[1751809893241,1e-08,2559.0,2558.9,4.94332804]
[1751809893446,1e-08,2559.0,2558.9,4.90424875]
[1751809893995,0.17353006,2559.4,2558.9,0.99631957]
[1751809894147,0.17353006,2559.4,2558.6,0.7898]
[1751809894353,0.17353006,2559.4,2559.3,4.1025184]
[1751809894679,9.02153006,2559.4,2559.3,4.1025184]
[1751809895254,9.05053006,2559.4,2559.3,4.14159158]
[1751809895455,0.17353006,2559.4,2559.3,4.1025184]
[1751809895658,9.05053006,2559.4,2559.3,4.1025184]
[1751809895859,10.50558307,2559.4,2559.3,0.1952]
[1751809896066,14.41274881,2559.4,2559.3,0.1952]
[1751809896474,1.07858307,2559.4,2558.6,0.03908387]
[1751809896781,0.17353006,2559.4,2559.3,0.1952]
[1751809896983,9.08353006,2559.4,2559.3,0.1952]
[1751809897150,13.5406958,2559.4,2559.3,0.1952]
[1751809897355,14.3181958,2559.4,2559.3,0.1952]
[1751809897670,14.3181958,2559.4,2558.3,0.7544]
[1751809897671,0.55,2559.3,2558.9,0.1952]
[1751809898182,0.55,2559.1,2558.9,0.1952]
[1751809898572,4.45767245,2559.1,2558.9,0.1952]
[1751809898760,0.55,2559.1,2558.9,0.1952]
[1751809898965,10.0,2559.3,2558.9,0.1952]
[1751809899170,11.263,2559.2,2559.0,0.1952]
[1751809899373,11.263,2559.2,2558.7,3.90814575]
[1751809899597,2.904,2559.3,2559.1,0.1952]
[1751809899897,9.45,2559.2,2559.1,0.1952]
[1751809900080,0.55,2559.2,2559.1,0.1952]
[1751809900280,11.804,2559.2,2559.1,0.1952]
[1751809900891,11.804,2559.2,2557.8,0.7544]
[1751809901060,0.95103006,2559.4,2558.8,3.90807836]
[1751809901061,0.55,2559.0,2558.8,3.90807836]
[1751809901263,0.95103006,2559.4,2559.1,0.1952]
[1751809901565,25.7083184,2559.3,2559.2,0.1952]
[1751809901987,0.55,2559.1,2558.5,3.90849755]
[1751809902160,4.45747345,2559.2,2559.0,0.1952]
[1751809902358,0.55,2559.2,2559.0,0.1952]
[1751809902593,4.45748242,2559.2,2559.0,0.1952]
[1751809902981,4.45762377,2559.1,2559.0,0.1952]
[1751809903181,15.69662377,2559.1,2559.0,0.1952]
[1751809903559,2.12835655,2561.6,2559.1,7.034]
[1751809903760,7.81,2563.3,2559.1,7.034]
[1751809903761,1e-08,2562.1,2561.9,3.87785298]
[1751809903998,11.54599852,2563.2,2561.9,3.87785298]
[1751809903999,0.7815,2563.8,2562.6,0.8255]
[1751809904303,15.00979808,2564.9,2562.9,0.8255]
[1751809904513,0.1911557,2565.1,2564.8,3.89893948]
[1751809904514,0.1411557,2565.1,2564.8,3.89893948]
[1751809904663,0.1411557,2565.1,2565.0,3.89863547]
[1751809904861,0.1411557,2565.1,2564.8,3.89893948]
[1751809904862,0.7815,2566.9,2566.1,3.89681742]
[1751809905163,0.7815,2566.9,2564.8,3.89893948]
[1751809905164,3.8969104,2566.2,2565.4,1.68127135]
[1751809905385,3.89772372,2565.6,2565.5,1.33518496]
[1751809905694,3.89772372,2565.6,2565.5,0.27870372]
[1751809905695,13.22779514,2565.6,2565.5,0.27870372]
[1751809905869,13.22779514,2565.6,2565.5,0.55632363]
[1751809905870,2.917,2565.6,2565.5,0.55632363]
[1751809906217,2.917,2565.6,2564.9,1.68127135]
[1751809906414,9.38,2566.1,2564.4,1.68127135]
[1751809906562,16.81616878,2566.0,2564.1,1.68127135]
[1751809906763,3.89856245,2565.1,2564.3,1.68127135]
[1751809907056,10.014,2565.0,2564.0,1.68127135]
[1751809907394,10.014,2565.0,2563.9,2.24169513]
[1751809907395,2.917,2565.9,2563.9,1.68127135]
[1751809907591,10.0,2565.6,2563.7,1.67627135]
[1751809907798,3.89839608,2565.2,2563.5,0.813]
[1751809907963,9.539,2566.4,2563.6,0.34543835]
[1751809907964,12.951,2565.1,2563.6,0.34543835]
[1751809908288,10.032,2565.0,2564.0,3.90012833]
[1751809908494,10.032,2565.0,2563.5,4.71389411]
[1751809908692,3.89787565,2565.5,2563.6,0.03900764]
[1751809908883,0.55,2564.6,2563.5,0.813]
[1751809909081,3.89969972,2564.3,2563.5,0.813]
[1751809909393,3.89943506,2564.5,2563.5,0.813]
[1751809909581,13.93142943,2564.5,2563.7,3.90056367]
[1751809909760,9.377,2565.1,2563.5,0.813]
[1751809909972,10.028,2565.0,2563.5,0.813]
[1751809910302,3.89906294,2564.8,2563.5,0.813]
[1751809910517,12.94,2564.9,2563.5,4.71385691]
[1751809910805,3.89939938,2564.5,2563.5,0.813]
[1751809911093,3.89986144,2564.2,2563.5,0.813]
[1751809911304,3.89956089,2564.4,2563.5,4.71390944]
[1751809911305,0.38993994,2564.4,2563.5,4.71390944]
[1751809911462,4.28962022,2564.4,2563.6,3.93965781]
[1751809911670,3.89970979,2564.3,2563.6,3.93974762]
[1751809911865,3.89922924,2564.7,2563.7,3.90049844]
[1751809912064,10.0,2564.8,2563.8,3.90045208]
[1751809912261,3.89937525,2564.6,2563.9,0.03900308]
[1751809912466,3.89890766,2564.9,2564.1,3.89988875]
[1751809912692,9.998,2564.8,2564.2,3.93883245]
[1751809912894,9.998,2564.8,2563.5,0.813]
[1751809913062,3.89919616,2564.7,2563.9,3.9001887]
[1751809913262,3.89927502,2564.6,2563.9,3.90020527]
[1751809913498,3.89958115,2564.4,2563.7,3.90053102]
[1751809913683,11.2893,2564.8,2564.5,0.1944]
[1751809914000,15.18827091,2564.8,2564.7,0.1944]
[1751809914174,11.2893,2564.8,2564.7,0.1944]
[1751809914375,9.998,2564.8,2564.7,0.1944]
[1751809914575,13.89693948,2564.8,2564.7,0.1944]
[1751809914967,13.27559272,2565.1,2564.7,0.1944]
[1751809915165,9.971,2565.0,2563.6,3.90066659]
[1751809915397,9.971,2565.0,2564.3,3.89955034]
[1751809915601,3.89882398,2564.9,2563.5,0.813]
[1751809915770,3.89906763,2564.8,2564.2,3.89983088]
[1751809915961,3.89906763,2564.8,2563.5,0.813]
[1751809915962,3.89905231,2564.8,2564.1,3.89995163]
[1751809916180,3.89905231,2564.8,2564.7,0.1944]
[1751809916376,9.971,2565.0,2564.7,0.1944]
[1751809916579,9.971,2565.0,2563.9,3.90020044]
[1751809916580,3.89930793,2564.6,2563.9,3.90020044]
[1751809916895,9.971,2565.0,2564.8,0.1944]
[1751809916896,13.86965072,2565.0,2564.8,0.1944]
[1751809917112,9.971,2565.0,2564.5,0.1944]
[1751809917317,9.971,2565.0,2563.5,0.813]
[1751809917318,9.377,2565.1,2563.5,0.813]
[1751809917462,9.964,2565.0,2564.9,0.1944]
[1751809917667,9.377,2565.1,2564.9,0.1944]
[1751809917867,9.377,2565.1,2564.9,4.09317446]
[1751809918100,2.914,2565.4,2564.9,0.1944]
[1751809918301,2.914,2566.1,2565.5,0.1944]
[1751809918595,2.914,2566.1,2564.5,0.8161]
[1751809918596,3.89903406,2564.8,2564.5,0.1944]
[1751809918897,16.76509402,2564.7,2564.1,3.89989302]
[1751809919068,9.954,2564.6,2564.5,0.1944]
[1751809919270,13.85325154,2564.6,2564.5,0.1944]
[1751809919468,9.954,2564.6,2564.5,0.1944]
[1751809919684,13.85324354,2564.6,2564.5,0.1944]
[1751809920217,13.85324354,2564.6,2563.6,0.47140072]
[1751809920218,3.89650872,2566.4,2564.6,0.8161]
[1751809920416,3.89795865,2565.5,2564.6,0.8161]
[1751809920579,9.989,2565.4,2564.6,0.8161]
[1751809920779,3.8971052,2566.1,2564.9,3.89873212]
[1751809921100,13.88612012,2566.0,2565.0,0.03898635]
[1751809921436,1e-08,2566.6,2565.3,4.135]
[1751809921709,1e-08,2567.3,2567.2,4.68599448]
[1751809921909,1e-08,2567.3,2567.2,4.72494742]
[1751809922114,0.005,2568.0,2567.9,3.89423264]
[1751809922608,0.005,2568.0,2566.3,0.7907]
[1751809922811,0.005,2568.0,2566.4,0.03896508]
[1751809923012,13.127,2567.9,2567.0,3.8954606]
[1751809923214,1.3132,2567.8,2566.3,0.7907]
[1751809923424,13.127,2567.8,2565.7,0.7907]
[1751809923583,10.55,2567.7,2565.7,0.7907]
[1751809923783,13.127,2567.8,2565.7,0.7907]
[1751809923784,0.55,2567.0,2565.7,0.7907]
[1751809924105,0.55,2566.8,2565.7,0.7407]
[1751809924421,0.55,2566.9,2566.4,3.89639472]
[1751809924617,10.146,2566.7,2566.4,0.77930644]
[1751809924781,10.151,2566.8,2566.5,3.89629187]
[1751809924983,10.151,2566.8,2566.6,3.8962044]
[1751809924984,10.148,2566.8,2566.6,3.8962044]
[1751809925213,3.89494347,2567.5,2566.2,3.89672214]
[1751809925384,3.89920189,2568.0,2565.5,3.89775462]
[1751809925385,10.146,2567.4,2565.5,3.89775462]
[1751809925587,10.0,2567.7,2565.4,3.89802759]
[1751809925890,0.005,2568.0,2565.4,3.89802759]
[1751809925891,3.89672024,2566.3,2565.5,2.69712478]
[1751809926119,10.143,2567.3,2565.2,3.89833151]
[1751809926120,3.89597692,2566.8,2565.2,3.89833151]
[1751809926313,2.993,2566.8,2565.2,10.0]
[1751809926553,9.366,2567.1,2565.5,3.897864]
[1751809926817,4.44574973,2566.9,2566.0,3.89702214]
[1751809927026,3.89590151,2566.8,2565.6,0.7813]
[1751809927219,3.89688269,2566.2,2565.6,0.7813]
[1751809927380,0.55,2566.6,2565.6,0.7813]
[1751809927381,10.157,2566.1,2565.6,0.7813]
[1751809927579,10.157,2566.1,2565.9,3.89715154]
[1751809927823,0.44459015,2566.7,2565.9,0.03897268]
[1751809928141,13.143,2566.6,2565.6,0.7813]
[1751809928434,10.0,2567.0,2565.6,0.7813]
[1751809928598,9.366,2567.1,2565.6,0.7813]
[1751809928803,13.137,2567.0,2566.5,3.89621228]
[1751809929003,2.992,2567.0,2566.6,3.93513805]
[1751809929234,3.89438468,2567.8,2567.0,3.89548241]
[1751809929535,0.055,2568.0,2567.1,0.03895446]
[1751809929738,13.128,2567.9,2567.2,3.8952236]
[1751809929944,0.055,2568.0,2566.7,4.67727133]
[1751809929945,0.005,2568.0,2567.3,0.03895142]
[1751809930105,0.005,2568.0,2567.9,0.1944]
[1751809930300,0.005,2568.0,2567.9,4.08863264]